[Event "Titled Tuesday Blitz March 01 Early 2022"]
[White "Guseva, Marina"]
[Black "Samarth, J Rao"]
[WhiteFideId "4149351"]
[BlackFideId "46652370"]
[WhiteElo "2232"]
[BlackElo "1514"]
[Result "0-1"]
[Round "08"]
[TimeControl "180+1"]
[Date "2022.03.01"]
[WhiteClock "0:00:02"]
[BlackClock "0:00:09"]

1. d4 {[%clk 0:03:00]}  Nf6 {[%clk 0:02:58]} 2. Nf3 {[%clk 0:03:00]}  g6 {[%clk 0:02:55]} 3. Bf4 {[%clk 0:02:58]}  d5 {[%clk 0:02:52]} 4. e3 {[%clk 0:02:57]}  Bg7 {[%clk 0:02:51]} 5. c3 {[%clk 0:02:55]}  c5 {[%clk 0:02:50]} 6. Nbd2 {[%clk 0:02:55]}  O-O {[%clk 0:02:48]} 7. Be2 {[%clk 0:02:46]}  Nc6 {[%clk 0:02:40]} 8. O-O {[%clk 0:02:38]}  Bf5 {[%clk 0:02:36]} 9. dxc5 {[%clk 0:02:35]}  Nh5 {[%clk 0:02:34]} 10. Bg5 {[%clk 0:02:22]}  h6 {[%clk 0:02:29]} 11. Bh4 {[%clk 0:02:22]}  g5 {[%clk 0:02:27]} 12. Nd4 {[%clk 0:02:20]}  Nxd4 {[%clk 0:02:24]} 13. cxd4 {[%clk 0:02:17]}  Nf6 {[%clk 0:02:10]} 14. Bg3 {[%clk 0:02:15]}  Rc8 {[%clk 0:01:27]} 15. b4 {[%clk 0:02:11]}  Ne4 {[%clk 0:01:13]} 16. Nxe4 {[%clk 0:02:08]}  Bxe4 {[%clk 0:01:14]} 17. Bd3 {[%clk 0:02:07]}  Bxd3 {[%clk 0:01:13]} 18. Qxd3 {[%clk 0:02:07]}  f5 {[%clk 0:01:14]} 19. Be5 {[%clk 0:02:02]}  Bxe5 {[%clk 0:01:12]} 20. dxe5 {[%clk 0:02:02]}  e6 {[%clk 0:01:13]} 21. f4 {[%clk 0:01:56]}  g4 {[%clk 0:01:12]} 22. Rfc1 {[%clk 0:01:48]}  Kg7 {[%clk 0:01:09]} 23. a4 {[%clk 0:01:42]}  h5 {[%clk 0:01:07]} 24. b5 {[%clk 0:01:34]}  Qe7 {[%clk 0:01:04]} 25. Qd4 {[%clk 0:01:31]}  Rc7 {[%clk 0:00:53]} 26. Rc3 {[%clk 0:01:30]}  Rfc8 {[%clk 0:00:50]} 27. Rac1 {[%clk 0:01:30]}  h4 {[%clk 0:00:41]} 28. Kf1 {[%clk 0:01:27]}  Qd7 {[%clk 0:00:39]} 29. Ke2 {[%clk 0:01:22]}  a6 {[%clk 0:00:39]} 30. Qb4 {[%clk 0:01:07]}  axb5 {[%clk 0:00:38]} 31. axb5 {[%clk 0:00:59]}  Ra8 {[%clk 0:00:34]} 32. c6 {[%clk 0:00:56]}  bxc6 {[%clk 0:00:31]} 33. bxc6 {[%clk 0:00:55]}  Ra2+ {[%clk 0:00:28]} 34. Kf1 {[%clk 0:00:52]}  Qc8 {[%clk 0:00:28]} 35. Qb5 {[%clk 0:00:45]}  h3 {[%clk 0:00:27]} 36. R3c2 {[%clk 0:00:43]}  hxg2+ {[%clk 0:00:24]} 37. Kg1 {[%clk 0:00:42]}  Ra3 {[%clk 0:00:20]} 38. Qc5 {[%clk 0:00:29]}  Rd3 {[%clk 0:00:19]} 39. Rb2 {[%clk 0:00:27]}  Kg6 {[%clk 0:00:18]} 40. Qb6 {[%clk 0:00:24]}  d4 {[%clk 0:00:17]} 41. exd4 {[%clk 0:00:23]}  g3 {[%clk 0:00:17]} 42. Qb8 {[%clk 0:00:17]}  gxh2+ {[%clk 0:00:15]} 43. Kxh2 {[%clk 0:00:16]}  Rh7+ {[%clk 0:00:13]} 44. Kxg2 {[%clk 0:00:13]}  Rd2+ {[%clk 0:00:13]} 45. Kg3 {[%clk 0:00:09]}  Rhh2 {[%clk 0:00:09]} 46. Rxd2 {[%clk 0:00:03]}  Qxb8 {[%clk 0:00:08]} 47. Rxh2 {[%clk 0:00:02]}  Qb3+ {[%clk 0:00:09]} 0-1


[Site "https://www.chess.com"]

[Event "Titled Tuesday Blitz March 01 Early 2022"]
[White "Hamley, Ryan"]
[Black "Fier, Alexandr"]
[WhiteFideId "30959497"]
[BlackFideId "2107139"]
[WhiteElo "2564"]
[BlackElo "2569"]
[Result "0-1"]
[Round "08"]
[TimeControl "180+1"]
[Date "2022.03.01"]
[WhiteClock "0:00:01"]
[BlackClock "0:01:18"]

1. d4 {[%clk 0:02:59]}  Nf6 {[%clk 0:03:00]} 2. Nf3 {[%clk 0:02:59]}  c5 {[%clk 0:02:59]} 3. dxc5 {[%clk 0:02:53]}  e6 {[%clk 0:02:57]} 4. g3 {[%clk 0:02:52]}  Bxc5 {[%clk 0:02:57]} 5. Bg2 {[%clk 0:02:53]}  d5 {[%clk 0:02:56]} 6. O-O {[%clk 0:02:53]}  Nc6 {[%clk 0:02:57]} 7. c4 {[%clk 0:02:53]}  d4 {[%clk 0:02:57]} 8. a3 {[%clk 0:02:45]}  a5 {[%clk 0:02:56]} 9. Nbd2 {[%clk 0:02:46]}  e5 {[%clk 0:02:55]} 10. Rb1 {[%clk 0:02:46]}  a4 {[%clk 0:02:55]} 11. Qc2 {[%clk 0:02:35]}  h5 {[%clk 0:02:47]} 12. Rd1 {[%clk 0:02:25]}  h4 {[%clk 0:02:47]} 13. Ne4 {[%clk 0:02:13]}  Bf5 {[%clk 0:02:44]} 14. Nxh4 {[%clk 0:01:57]}  Rxh4 {[%clk 0:02:43]} 15. gxh4 {[%clk 0:01:57]}  Nxe4 {[%clk 0:02:32]} 16. Bxe4 {[%clk 0:01:56]}  Bh3 {[%clk 0:02:33]} 17. Bg5 {[%clk 0:01:55]}  Qd7 {[%clk 0:02:27]} 18. Kh1 {[%clk 0:01:51]}  f6 {[%clk 0:02:26]} 19. Bg6+ {[%clk 0:01:36]}  Ke7 {[%clk 0:02:26]} 20. Bd2 {[%clk 0:01:35]}  d3 {[%clk 0:01:48]} 21. Qxd3 {[%clk 0:01:35]}  Bxf2 {[%clk 0:01:47]} 22. Qxd7+ {[%clk 0:01:07]}  Bxd7 {[%clk 0:01:46]} 23. h5 {[%clk 0:01:04]}  Nd4 {[%clk 0:01:46]} 24. e3 {[%clk 0:01:01]}  Bc6+ {[%clk 0:01:46]} 25. e4 {[%clk 0:01:00]}  f5 {[%clk 0:01:47]} 26. Bb4+ {[%clk 0:00:58]}  Kf6 {[%clk 0:01:47]} 27. Kg2 {[%clk 0:00:58]}  Be3 {[%clk 0:01:44]} 28. Rxd4 {[%clk 0:00:19]}  exd4 {[%clk 0:01:37]} 29. Bxf5 {[%clk 0:00:19]}  Ke5 {[%clk 0:01:34]} 30. Rf1 {[%clk 0:00:16]}  Bxe4+ {[%clk 0:01:34]} 31. Bxe4 {[%clk 0:00:17]}  Kxe4 {[%clk 0:01:35]} 32. Rf7 {[%clk 0:00:16]}  Bh6 {[%clk 0:01:26]} 33. Rd7 {[%clk 0:00:15]}  Kd3 {[%clk 0:01:25]} 34. Bc5 {[%clk 0:00:15]}  Be3 {[%clk 0:01:25]} 35. Rxg7 {[%clk 0:00:14]}  Kxc4 {[%clk 0:01:25]} 36. Bb6 {[%clk 0:00:12]}  Rh8 {[%clk 0:01:25]} 37. Rxb7 {[%clk 0:00:11]}  Rxh5 {[%clk 0:01:25]} 38. Rc7+ {[%clk 0:00:12]}  Kb3 {[%clk 0:01:25]} 39. Rd7 {[%clk 0:00:11]}  Rh4 {[%clk 0:01:24]} 40. Bc5 {[%clk 0:00:09]}  Kxb2 {[%clk 0:01:24]} 41. Ra7 {[%clk 0:00:09]}  Kb3 {[%clk 0:01:19]} 42. Rb7+ {[%clk 0:00:09]}  Kc4 {[%clk 0:01:19]} 43. Ba7 {[%clk 0:00:09]}  Kc3 {[%clk 0:01:18]} 44. Rb4 {[%clk 0:00:08]}  Kd2 {[%clk 0:01:17]} 45. Rxa4 {[%clk 0:00:08]}  Ke2 {[%clk 0:01:18]} 46. Ra6 {[%clk 0:00:06]}  Rg4+ {[%clk 0:01:18]} 47. Kh3 {[%clk 0:00:06]}  Rg7 {[%clk 0:01:17]} 48. Re6 {[%clk 0:00:04]}  Kf3 {[%clk 0:01:17]} 49. Rf6+ {[%clk 0:00:01]}  Bf4 {[%clk 0:01:17]} 50. Rf5 {[%clk 0:00:01]}  Rh7+ {[%clk 0:01:18]} 0-1


[Site "https://www.chess.com"]

[Event "Titled Tuesday Blitz March 01 Early 2022"]
[White "Horobetz, Graham"]
[Black "Bryakin, Mikhail"]
[WhiteFideId "2047322"]
[BlackFideId "4165314"]
[WhiteElo "2629"]
[BlackElo "2421"]
[Result "1/2-1/2"]
[Round "08"]
[TimeControl "180+1"]
[Date "2022.03.01"]
[WhiteClock "0:00:19"]
[BlackClock "0:01:39"]

1. e4 {[%clk 0:02:59]}  e6 {[%clk 0:02:59]} 2. d4 {[%clk 0:02:59]}  d5 {[%clk 0:03:00]} 3. Nd2 {[%clk 0:03:00]}  c5 {[%clk 0:03:00]} 4. Ngf3 {[%clk 0:03:01]}  cxd4 {[%clk 0:02:58]} 5. exd5 {[%clk 0:03:00]}  Qxd5 {[%clk 0:02:57]} 6. Bc4 {[%clk 0:03:01]}  Qd8 {[%clk 0:02:57]} 7. O-O {[%clk 0:03:01]}  Nc6 {[%clk 0:02:58]} 8. Nb3 {[%clk 0:03:00]}  Nf6 {[%clk 0:02:57]} 9. Nbxd4 {[%clk 0:03:00]}  Bd7 {[%clk 0:02:58]} 10. Qe2 {[%clk 0:02:57]}  Bc5 {[%clk 0:02:56]} 11. Nxc6 {[%clk 0:02:48]}  Bxc6 {[%clk 0:02:57]} 12. Ne5 {[%clk 0:02:48]}  O-O {[%clk 0:02:54]} 13. Nxc6 {[%clk 0:02:47]}  bxc6 {[%clk 0:02:55]} 14. Bd3 {[%clk 0:02:46]}  h6 {[%clk 0:02:53]} 15. a3 {[%clk 0:02:45]}  a5 {[%clk 0:02:52]} 16. b3 {[%clk 0:02:32]}  Bd4 {[%clk 0:02:51]} 17. Rb1 {[%clk 0:02:31]}  Nd5 {[%clk 0:02:51]} 18. Qe4 {[%clk 0:02:22]}  Nf6 {[%clk 0:02:51]} 19. Qxc6 {[%clk 0:02:21]}  e5 {[%clk 0:02:49]} 20. Be3 {[%clk 0:02:13]}  Re8 {[%clk 0:02:38]} 21. Rbd1 {[%clk 0:02:11]}  Qe7 {[%clk 0:02:34]} 22. Bxd4 {[%clk 0:02:10]}  exd4 {[%clk 0:02:35]} 23. a4 {[%clk 0:02:06]}  Qb4 {[%clk 0:02:34]} 24. h3 {[%clk 0:02:03]}  Rac8 {[%clk 0:02:32]} 25. Qf3 {[%clk 0:02:02]}  Re5 {[%clk 0:02:28]} 26. Qf4 {[%clk 0:01:57]}  Rd5 {[%clk 0:02:26]} 27. Qd2 {[%clk 0:01:57]}  Qxd2 {[%clk 0:02:24]} 28. Rxd2 {[%clk 0:01:58]}  Re5 {[%clk 0:02:24]} 29. Rdd1 {[%clk 0:01:50]}  Nd5 {[%clk 0:02:08]} 30. Bc4 {[%clk 0:01:38]}  Nb4 {[%clk 0:02:05]} 31. Rxd4 {[%clk 0:01:34]}  Nxc2 {[%clk 0:02:05]} 32. Rd7 {[%clk 0:01:34]}  Rf8 {[%clk 0:02:05]} 33. Rfd1 {[%clk 0:01:26]}  Nb4 {[%clk 0:02:04]} 34. Rxf7 {[%clk 0:01:22]}  Rxf7 {[%clk 0:02:02]} 35. Rd8+ {[%clk 0:01:22]}  Kh7 {[%clk 0:02:03]} 36. Bxf7 {[%clk 0:01:22]}  Rg5 {[%clk 0:02:00]} 37. Bc4 {[%clk 0:01:18]}  Re5 {[%clk 0:02:00]} 38. g3 {[%clk 0:01:17]}  g5 {[%clk 0:02:00]} 39. Rd6 {[%clk 0:01:16]}  Kg7 {[%clk 0:01:54]} 40. Kg2 {[%clk 0:01:15]}  Rf5 {[%clk 0:01:54]} 41. Rb6 {[%clk 0:01:14]}  Re5 {[%clk 0:01:54]} 42. Rb5 {[%clk 0:01:13]}  Kf6 {[%clk 0:01:55]} 43. f4 {[%clk 0:01:09]}  gxf4 {[%clk 0:01:55]} 44. gxf4 {[%clk 0:01:10]}  Rf5 {[%clk 0:01:50]} 45. Kg3 {[%clk 0:01:05]}  Nc2 {[%clk 0:01:49]} 46. Rb6+ {[%clk 0:01:05]}  Kg7 {[%clk 0:01:49]} 47. Rb5 {[%clk 0:01:02]}  Nd4 {[%clk 0:01:47]} 48. Rxf5 {[%clk 0:01:01]}  Nxf5+ {[%clk 0:01:48]} 49. Kg4 {[%clk 0:01:01]}  Kf6 {[%clk 0:01:49]} 50. Kf3 {[%clk 0:01:00]}  Nd6 {[%clk 0:01:45]} 51. Bd3 {[%clk 0:00:57]}  Nb7 {[%clk 0:01:44]} 52. Ke3 {[%clk 0:00:57]}  Nc5 {[%clk 0:01:43]} 53. Bc2 {[%clk 0:00:57]}  Ne6 {[%clk 0:01:43]} 54. Ke4 {[%clk 0:00:57]}  h5 {[%clk 0:01:42]} 55. h4 {[%clk 0:00:56]}  Ng7 {[%clk 0:01:43]} 56. Kd5 {[%clk 0:00:52]}  Ne6 {[%clk 0:01:43]} 57. f5 {[%clk 0:00:48]}  Nf4+ {[%clk 0:01:43]} 58. Kc5 {[%clk 0:00:45]}  Ng2 {[%clk 0:01:44]} 59. Bd1 {[%clk 0:00:44]}  Nxh4 {[%clk 0:01:43]} 60. Bxh5 {[%clk 0:00:43]}  Nxf5 {[%clk 0:01:44]} 61. Bd1 {[%clk 0:00:38]}  Ne3 {[%clk 0:01:44]} 62. Be2 {[%clk 0:00:36]}  Nc2 {[%clk 0:01:44]} 63. Bc4 {[%clk 0:00:36]}  Ke5 {[%clk 0:01:44]} 64. Kb5 {[%clk 0:00:36]}  Kd6 {[%clk 0:01:42]} 65. Kxa5 {[%clk 0:00:35]}  Kc5 {[%clk 0:01:43]} 66. Ka6 {[%clk 0:00:33]}  Nb4+ {[%clk 0:01:38]} 67. Kb7 {[%clk 0:00:33]}  Nc6 {[%clk 0:01:38]} 68. Bb5 {[%clk 0:00:28]}  Na5+ {[%clk 0:01:38]} 69. Ka6 {[%clk 0:00:25]}  Nxb3 {[%clk 0:01:38]} 70. Be8 {[%clk 0:00:22]}  Kb4 {[%clk 0:01:38]} 71. Bb5 {[%clk 0:00:20]}  Nc5+ {[%clk 0:01:38]} 72. Ka7 {[%clk 0:00:19]}  Nxa4 {[%clk 0:01:39]} 1/2-1/2


[Site "https://www.chess.com"]

[Event "Titled Tuesday Blitz March 01 Early 2022"]
[White "Iskusnyh, Sergei"]
[Black "Manelyuk, Daniil"]
[WhiteFideId "4120027"]
[BlackFideId "44173920"]
[WhiteElo "2492"]
[BlackElo "2222"]
[Result "1-0"]
[Round "08"]
[TimeControl "180+1"]
[Date "2022.03.01"]
[WhiteClock "0:00:02"]
[BlackClock "0:00:01"]

1. d4 {[%clk 0:03:00]}  Nf6 {[%clk 0:02:58]} 2. c4 {[%clk 0:03:01]}  c5 {[%clk 0:02:57]} 3. d5 {[%clk 0:03:01]}  b5 {[%clk 0:02:57]} 4. Qc2 {[%clk 0:03:01]}  Na6 {[%clk 0:02:56]} 5. a3 {[%clk 0:02:57]}  b4 {[%clk 0:02:56]} 6. e4 {[%clk 0:02:56]}  d6 {[%clk 0:02:56]} 7. Nf3 {[%clk 0:02:50]}  g6 {[%clk 0:02:55]} 8. e5 {[%clk 0:02:46]}  Ng4 {[%clk 0:02:29]} 9. exd6 {[%clk 0:02:34]}  exd6 {[%clk 0:02:30]} 10. Bg5 {[%clk 0:02:33]}  Qa5 {[%clk 0:01:53]} 11. Qe4+ {[%clk 0:02:14]}  Kd7 {[%clk 0:01:35]} 12. Qxg4+ {[%clk 0:02:12]}  f5 {[%clk 0:01:35]} 13. Qh4 {[%clk 0:01:35]}  Bg7 {[%clk 0:01:28]} 14. Bf6 {[%clk 0:00:55]}  Re8+ {[%clk 0:01:09]} 15. Be2 {[%clk 0:00:51]}  bxa3+ {[%clk 0:01:01]} 16. Nbd2 {[%clk 0:00:48]}  Nb4 {[%clk 0:00:52]} 17. O-O {[%clk 0:00:47]}  Bxf6 {[%clk 0:00:46]} 18. Qxf6 {[%clk 0:00:46]}  Rxe2 {[%clk 0:00:46]} 19. Rfe1 {[%clk 0:00:37]}  Rxe1+ {[%clk 0:00:39]} 20. Rxe1 {[%clk 0:00:37]}  Kc7 {[%clk 0:00:40]} 21. bxa3 {[%clk 0:00:27]}  Qxa3 {[%clk 0:00:31]} 22. Ng5 {[%clk 0:00:27]}  Qa4 {[%clk 0:00:14]} 23. Qe7+ {[%clk 0:00:25]}  Qd7 {[%clk 0:00:11]} 24. Ne6+ {[%clk 0:00:26]}  Kb6 {[%clk 0:00:11]} 25. Qg5 {[%clk 0:00:22]}  a5 {[%clk 0:00:11]} 26. Nb1 {[%clk 0:00:19]}  a4 {[%clk 0:00:11]} 27. Na3 {[%clk 0:00:19]}  Ba6 {[%clk 0:00:10]} 28. h4 {[%clk 0:00:19]}  Re8 {[%clk 0:00:10]} 29. Rb1 {[%clk 0:00:16]}  Ka7 {[%clk 0:00:08]} 30. Qe3 {[%clk 0:00:16]}  Qb7 {[%clk 0:00:07]} 31. Nb5+ {[%clk 0:00:13]}  Bxb5 {[%clk 0:00:06]} 32. Rxb4 {[%clk 0:00:13]}  a3 {[%clk 0:00:02]} 33. Qxa3+ {[%clk 0:00:11]}  Qa6 {[%clk 0:00:02]} 34. Qb3 {[%clk 0:00:07]}  Bd7 {[%clk 0:00:02]} 35. Rb5 {[%clk 0:00:03]}  Bxe6 {[%clk 0:00:02]} 36. dxe6 {[%clk 0:00:02]}  Rxe6 {[%clk 0:00:02]} 37. Qc3 {[%clk 0:00:02]}  Qc6 {[%clk 0:00:01]} 38. Qg7+ {[%clk 0:00:02]}  Ka6 {[%clk 0:00:01]} 39. Qa1# {[%clk 0:00:02]} 1-0


[Site "https://www.chess.com"]

[Event "Titled Tuesday Blitz March 01 Early 2022"]
[White "Jones, Gawain C B"]
[Black "Indjic, Aleksandar"]
[WhiteFideId "409561"]
[BlackFideId "911925"]
[WhiteElo "2894"]
[BlackElo "2909"]
[Result "1-0"]
[Round "08"]
[TimeControl "180+1"]
[Date "2022.03.01"]
[WhiteClock "0:00:07"]
[BlackClock "0:00:48"]

1. Nf3 {[%clk 0:03:00]}  d5 {[%clk 0:02:59]} 2. g3 {[%clk 0:03:00]}  Nd7 {[%clk 0:02:59]} 3. Bg2 {[%clk 0:02:52]}  e5 {[%clk 0:02:58]} 4. d3 {[%clk 0:02:51]}  Ngf6 {[%clk 0:02:58]} 5. O-O {[%clk 0:02:51]}  Bc5 {[%clk 0:02:57]} 6. Nc3 {[%clk 0:02:51]}  e4 {[%clk 0:02:51]} 7. dxe4 {[%clk 0:02:45]}  dxe4 {[%clk 0:02:51]} 8. Ng5 {[%clk 0:02:42]}  e3 {[%clk 0:02:48]} 9. Bxe3 {[%clk 0:02:37]}  Bxe3 {[%clk 0:02:48]} 10. fxe3 {[%clk 0:02:38]}  O-O {[%clk 0:02:47]} 11. Qd4 {[%clk 0:02:34]}  c6 {[%clk 0:02:41]} 12. Rad1 {[%clk 0:02:28]}  Qe7 {[%clk 0:02:41]} 13. Nge4 {[%clk 0:02:22]}  Nxe4 {[%clk 0:02:40]} 14. Nxe4 {[%clk 0:02:20]}  Ne5 {[%clk 0:02:39]} 15. Qd6 {[%clk 0:01:45]}  Qxd6 {[%clk 0:02:38]} 16. Nxd6 {[%clk 0:01:45]}  Rb8 {[%clk 0:02:38]} 17. Rd4 {[%clk 0:01:38]}  Be6 {[%clk 0:02:37]} 18. a4 {[%clk 0:01:36]}  f6 {[%clk 0:02:17]} 19. h3 {[%clk 0:01:27]}  b6 {[%clk 0:02:10]} 20. Rfd1 {[%clk 0:01:24]}  h6 {[%clk 0:02:03]} 21. b3 {[%clk 0:01:24]}  c5 {[%clk 0:01:55]} 22. R4d2 {[%clk 0:01:21]}  Rfd8 {[%clk 0:01:55]} 23. Nb5 {[%clk 0:01:19]}  Rxd2 {[%clk 0:01:52]} 24. Rxd2 {[%clk 0:01:20]}  c4 {[%clk 0:01:45]} 25. b4 {[%clk 0:01:13]}  a5 {[%clk 0:01:44]} 26. bxa5 {[%clk 0:00:57]}  bxa5 {[%clk 0:01:45]} 27. Bd5 {[%clk 0:00:51]}  Kf7 {[%clk 0:01:43]} 28. e4 {[%clk 0:00:47]}  Ke7 {[%clk 0:01:41]} 29. Bxe6 {[%clk 0:00:45]}  Kxe6 {[%clk 0:01:42]} 30. Rd5 {[%clk 0:00:41]}  Ke7 {[%clk 0:01:40]} 31. Kf2 {[%clk 0:00:41]}  h5 {[%clk 0:01:35]} 32. Ke3 {[%clk 0:00:39]}  h4 {[%clk 0:01:35]} 33. gxh4 {[%clk 0:00:32]}  Rh8 {[%clk 0:01:34]} 34. Nd4 {[%clk 0:00:32]}  g6 {[%clk 0:01:31]} 35. Nf3 {[%clk 0:00:30]}  Nc6 {[%clk 0:01:30]} 36. Rc5 {[%clk 0:00:28]}  Kd6 {[%clk 0:01:29]} 37. Rxc4 {[%clk 0:00:29]}  Rb8 {[%clk 0:01:24]} 38. e5+ {[%clk 0:00:26]}  fxe5 {[%clk 0:01:22]} 39. Rg4 {[%clk 0:00:25]}  Ne7 {[%clk 0:01:22]} 40. Kd3 {[%clk 0:00:21]}  Rb1 {[%clk 0:01:19]} 41. Nd2 {[%clk 0:00:19]}  Rd1 {[%clk 0:01:19]} 42. c3 {[%clk 0:00:18]}  Ke6 {[%clk 0:01:18]} 43. Re4 {[%clk 0:00:13]}  Nc6 {[%clk 0:01:11]} 44. Kc2 {[%clk 0:00:13]}  Ra1 {[%clk 0:01:10]} 45. Nb3 {[%clk 0:00:10]}  Rf1 {[%clk 0:01:02]} 46. Rg4 {[%clk 0:00:10]}  Kd6 {[%clk 0:00:58]} 47. Rxg6+ {[%clk 0:00:09]}  Kc7 {[%clk 0:00:55]} 48. h5 {[%clk 0:00:09]}  Rf5 {[%clk 0:00:53]} 49. h6 {[%clk 0:00:09]}  Rh5 {[%clk 0:00:54]} 50. Nc5 {[%clk 0:00:08]}  Rxh3 {[%clk 0:00:53]} 51. Ne4 {[%clk 0:00:08]}  Kb6 {[%clk 0:00:51]} 52. Ng5 {[%clk 0:00:08]}  Rh2 {[%clk 0:00:51]} 53. h7 {[%clk 0:00:08]}  Kc5 {[%clk 0:00:48]} 54. Rg8 {[%clk 0:00:07]} 1-0


[Site "https://www.chess.com"]

[Event "Titled Tuesday Blitz March 01 Early 2022"]
[White "Kadam, Om Manish"]
[Black "Shubenkova, Veronika"]
[WhiteFideId "45076294"]
[BlackFideId "44124040"]
[WhiteElo "1729"]
[BlackElo "1938"]
[Result "1/2-1/2"]
[Round "08"]
[TimeControl "180+1"]
[Date "2022.03.01"]
[WhiteClock "0:00:24"]
[BlackClock "0:00:36"]

1. e4 {[%clk 0:03:00]}  e6 {[%clk 0:02:56]} 2. d4 {[%clk 0:03:00]}  d5 {[%clk 0:02:56]} 3. Nd2 {[%clk 0:03:00]}  c5 {[%clk 0:02:53]} 4. exd5 {[%clk 0:03:00]}  Qxd5 {[%clk 0:02:53]} 5. Ngf3 {[%clk 0:03:01]}  Nf6 {[%clk 0:02:48]} 6. Bc4 {[%clk 0:03:01]}  Qd8 {[%clk 0:02:48]} 7. O-O {[%clk 0:03:01]}  cxd4 {[%clk 0:02:48]} 8. Qe2 {[%clk 0:03:02]}  Nc6 {[%clk 0:02:48]} 9. Nb3 {[%clk 0:03:01]}  a6 {[%clk 0:02:44]} 10. a4 {[%clk 0:03:01]}  Be7 {[%clk 0:02:43]} 11. Rd1 {[%clk 0:03:01]}  Qc7 {[%clk 0:02:43]} 12. Nbxd4 {[%clk 0:03:01]}  Nxd4 {[%clk 0:02:42]} 13. Rxd4 {[%clk 0:03:01]}  O-O {[%clk 0:02:42]} 14. Bf4 {[%clk 0:03:01]}  Qb6 {[%clk 0:02:42]} 15. Bb3 {[%clk 0:02:59]}  Bc5 {[%clk 0:02:37]} 16. Rd3 {[%clk 0:02:56]}  Bd7 {[%clk 0:02:33]} 17. Ne5 {[%clk 0:02:52]}  Bc6 {[%clk 0:02:33]} 18. a5 {[%clk 0:02:41]}  Qb4 {[%clk 0:02:22]} 19. Be3 {[%clk 0:01:53]}  Bxe3 {[%clk 0:02:05]} 20. Qxe3 {[%clk 0:01:47]}  Bd5 {[%clk 0:02:05]} 21. Ra4 {[%clk 0:01:42]}  Qe7 {[%clk 0:02:01]} 22. Bxd5 {[%clk 0:01:39]}  Nxd5 {[%clk 0:01:55]} 23. Qg3 {[%clk 0:01:34]}  f5 {[%clk 0:01:51]} 24. Rad4 {[%clk 0:01:32]}  Rac8 {[%clk 0:01:40]} 25. c4 {[%clk 0:01:30]}  Qb4 {[%clk 0:01:39]} 26. Nf3 {[%clk 0:01:16]}  Nf6 {[%clk 0:01:32]} 27. Qe5 {[%clk 0:01:14]}  Qxb2 {[%clk 0:01:26]} 28. Qxe6+ {[%clk 0:01:14]}  Kh8 {[%clk 0:01:25]} 29. h3 {[%clk 0:01:12]}  Ne4 {[%clk 0:01:04]} 30. Qxc8 {[%clk 0:00:46]}  Qxf2+ {[%clk 0:00:55]} 31. Kh2 {[%clk 0:00:39]}  Qg3+ {[%clk 0:00:48]} 32. Kg1 {[%clk 0:00:35]}  Qf2+ {[%clk 0:00:47]} 33. Kh2 {[%clk 0:00:29]}  Qg3+ {[%clk 0:00:47]} 34. Kh1 {[%clk 0:00:23]}  Nf2+ {[%clk 0:00:46]} 35. Kg1 {[%clk 0:00:24]}  Nxh3+ {[%clk 0:00:44]} 36. Kh1 {[%clk 0:00:24]}  Nf2+ {[%clk 0:00:43]} 37. Kg1 {[%clk 0:00:25]}  Nh3+ {[%clk 0:00:39]} 38. Kh1 {[%clk 0:00:24]}  Nf2+ {[%clk 0:00:37]} 39. Kg1 {[%clk 0:00:24]}  Nh3+ {[%clk 0:00:36]} 1/2-1/2


[Site "https://www.chess.com"]

[Event "Titled Tuesday Blitz March 01 Early 2022"]
[White "Karabalis, Harilos"]
[Black "Muhammed, Shuaau"]
[WhiteFideId "4621808"]
[BlackFideId "16700406"]
[WhiteElo "2168"]
[BlackElo "1674"]
[Result "1-0"]
[Round "08"]
[TimeControl "180+1"]
[Date "2022.03.01"]
[WhiteClock "0:00:02"]
[BlackClock "0:00:09"]

1. e4 {[%clk 0:03:00]}  e5 {[%clk 0:02:59]} 2. Nf3 {[%clk 0:03:00]}  Nc6 {[%clk 0:03:00]} 3. Bb5 {[%clk 0:03:00]}  a6 {[%clk 0:02:59]} 4. Ba4 {[%clk 0:03:00]}  Nf6 {[%clk 0:02:59]} 5. O-O {[%clk 0:03:00]}  Be7 {[%clk 0:02:59]} 6. d3 {[%clk 0:02:56]}  d6 {[%clk 0:02:57]} 7. c3 {[%clk 0:02:55]}  b5 {[%clk 0:02:57]} 8. Bc2 {[%clk 0:02:54]}  O-O {[%clk 0:02:58]} 9. h3 {[%clk 0:02:54]}  Bb7 {[%clk 0:02:51]} 10. Re1 {[%clk 0:02:52]}  Nb8 {[%clk 0:02:50]} 11. Nbd2 {[%clk 0:02:51]}  c5 {[%clk 0:02:49]} 12. Nf1 {[%clk 0:02:51]}  Nbd7 {[%clk 0:02:49]} 13. Ng3 {[%clk 0:02:51]}  g6 {[%clk 0:02:49]} 14. Bg5 {[%clk 0:02:49]}  Re8 {[%clk 0:02:47]} 15. Qd2 {[%clk 0:02:48]}  Kh8 {[%clk 0:02:44]} 16. d4 {[%clk 0:02:42]}  Ng8 {[%clk 0:02:39]} 17. dxc5 {[%clk 0:02:29]}  Nxc5 {[%clk 0:02:32]} 18. Rad1 {[%clk 0:02:25]}  f6 {[%clk 0:02:17]} 19. Be3 {[%clk 0:02:24]}  Qc7 {[%clk 0:02:10]} 20. b4 {[%clk 0:02:15]}  Nd7 {[%clk 0:02:07]} 21. Bb3 {[%clk 0:02:15]}  Nb6 {[%clk 0:02:07]} 22. Bxb6 {[%clk 0:01:59]}  Qxb6 {[%clk 0:02:08]} 23. c4 {[%clk 0:01:54]}  Rec8 {[%clk 0:01:47]} 24. cxb5 {[%clk 0:01:47]}  Qxb5 {[%clk 0:01:43]} 25. Rc1 {[%clk 0:01:38]}  a5 {[%clk 0:01:34]} 26. bxa5 {[%clk 0:01:37]}  Qxa5 {[%clk 0:01:32]} 27. Rxc8 {[%clk 0:01:31]}  Bxc8 {[%clk 0:01:28]} 28. Qd1 {[%clk 0:01:04]}  Bb7 {[%clk 0:01:16]} 29. Re3 {[%clk 0:01:02]}  Nh6 {[%clk 0:01:07]} 30. Rd3 {[%clk 0:01:00]}  f5 {[%clk 0:01:05]} 31. Rxd6 {[%clk 0:00:42]}  Bxd6 {[%clk 0:01:04]} 32. Qxd6 {[%clk 0:00:42]}  Ng8 {[%clk 0:00:25]} 33. Nxe5 {[%clk 0:00:33]}  Bxe4 {[%clk 0:00:20]} 34. Nxe4 {[%clk 0:00:27]}  fxe4 {[%clk 0:00:20]} 35. Nf7+ {[%clk 0:00:14]}  Kg7 {[%clk 0:00:20]} 36. Ng5 {[%clk 0:00:13]}  Qe1+ {[%clk 0:00:20]} 37. Kh2 {[%clk 0:00:12]}  Qxf2 {[%clk 0:00:13]} 38. Qd7+ {[%clk 0:00:06]}  Kh6 {[%clk 0:00:13]} 39. Nf7+ {[%clk 0:00:05]}  Kg7 {[%clk 0:00:11]} 40. Ne5+ {[%clk 0:00:03]}  Kh8 {[%clk 0:00:11]} 41. Nf7+ {[%clk 0:00:02]}  Kg7 {[%clk 0:00:11]} 42. Ng5+ {[%clk 0:00:03]}  Kf6 {[%clk 0:00:09]} 43. Nxe4+ {[%clk 0:00:02]}  Ke5 {[%clk 0:00:08]} 44. Nxf2 {[%clk 0:00:03]}  Kf4 {[%clk 0:00:08]} 45. Qd5 {[%clk 0:00:03]}  Ra4 {[%clk 0:00:09]} 46. g3+ {[%clk 0:00:03]}  Ke3 {[%clk 0:00:09]} 47. Ng4+ {[%clk 0:00:03]}  Ke2 {[%clk 0:00:09]} 48. Qd1# {[%clk 0:00:02]} 1-0


[Site "https://www.chess.com"]